bitfinex/quotes_SOLUSD_20250901
["timestamp","ask_amount","ask_price","bid_price","bid_amount"]
[1756684801327,2.704366,201.01,200.98,0.03]
[1756684802237,6.55480893,201.01,200.98,0.03]
[1756684803012,13.59559401,201.0,200.98,0.03]
[1756684803333,3.85044293,201.0,200.98,0.03]
[1756684803530,0.66,200.99,200.98,0.03]
[1756684805738,0.66,200.99,200.95,0.03]
[1756684807121,13.59559401,200.98,200.94,0.03]
[1756684807432,0.66,200.97,200.94,0.03]
[1756684807730,13.59559401,200.96,200.93,1e-08]
[1756684807901,17.44603694,200.96,200.92,1e-08]
[1756684808105,0.66,200.95,200.79,0.36]
[1756684808327,13.59559401,200.93,200.79,0.36]
[1756684808629,31.01632965,200.91,200.76,2.355659]
[1756684808808,13.59559401,200.89,200.76,5.34105713]
[1756684809009,40.2,200.88,200.77,0.36]
[1756684809314,13.59559401,200.87,200.74,0.56]
[1756684809518,13.59559401,200.85,200.74,0.2]
[1756684809716,18.60183996,200.85,200.74,0.2]
[1756684809918,0.66,200.84,200.74,0.2]
[1756684810429,17.42854296,200.82,200.74,0.2]
[1756684810729,53.79559401,200.81,200.74,0.2]
[1756684811117,53.79559401,200.81,200.59,18.94278399]
[1756684811118,53.79559401,200.81,200.62,0.56]
[1756684811318,18.10603694,200.81,200.62,0.56]
[1756684811619,18.10603694,200.81,200.63,13.59559401]
[1756684811620,39.54,200.8,200.63,13.59559401]
[1756684811814,13.59559401,200.78,200.64,0.56]
[1756684812124,39.54,200.8,200.61,15.538655]
[1756684812125,13.59559401,200.76,200.61,15.538655]
[1756684812428,13.59559401,200.74,200.61,0.56]
[1756684812613,45.18181637,200.73,200.62,4.9845479]
[1756684812932,0.66,200.72,200.61,5.54475495]
[1756684813143,0.66,200.71,200.62,0.56]
[1756684813303,0.66,200.71,200.59,5.54529338]
[1756684813507,0.66,200.7,200.59,5.54529338]
[1756684813721,0.66,200.69,200.59,5.54529338]
[1756684813907,0.66,200.68,200.59,5.54529338]
[1756684814632,0.66,200.67,200.59,0.56]
[1756684814835,0.66,200.67,200.58,4.98551765]
[1756684815138,0.66,200.66,200.58,4.98551765]
[1756684815436,0.66,200.65,200.55,4.9862877]
[1756684815645,0.66,200.64,200.55,4.9862877]
[1756684815823,0.66,200.63,200.55,4.9862877]
[1756684816029,0.66,200.62,200.55,4.9862877]
[1756684816231,0.66,200.62,200.51,4.98728242]
[1756684816232,0.66,200.61,200.51,4.98728242]
[1756684816442,0.66,200.64,200.51,17.45548849]
[1756684816628,0.66,200.61,200.51,4.98728242]
[1756684816932,0.66,200.6,200.51,5.04728242]
[1756684817134,0.66,200.6,200.52,13.65559401]
[1756684817313,0.66,200.62,200.53,0.06]
[1756684817826,14.986137,200.63,200.53,0.06]
[1756684818023,0.66,200.65,200.53,0.06]
[1756684818234,14.983144,200.68,200.54,13.59559401]
[1756684818534,0.66,200.68,200.55,0.06]
[1756684819722,0.66,200.72,200.56,13.59559401]
[1756684819940,26.64079165,200.78,200.58,13.59559401]
[1756684820148,0.66,200.74,200.59,0.06]
[1756684820316,0.66,200.74,200.6,13.59559401]
[1756684820671,0.66,200.74,200.62,13.59559401]
[1756684821140,0.66,200.77,200.63,0.06]
[1756684822339,5.64096583,200.77,200.64,31.03977263]
[1756684822529,0.66,200.76,200.64,31.03977263]
[1756684822851,0.66,200.75,200.64,4.98405103]
[1756684823027,0.66,200.74,200.64,4.98405103]
[1756684823344,0.66,200.73,200.64,4.98405103]
[1756684823524,0.66,200.72,200.64,4.98405103]
[1756684823840,0.66,200.72,200.59,13.59559401]
[1756684823841,5.6423129,200.71,200.62,4.9845479]
[1756684824145,0.66,200.7,200.62,4.9845479]
[1756684824346,0.66,200.69,200.62,4.9845479]
[1756684824720,0.66,200.68,200.62,4.9845479]
[1756684825348,4.9823129,200.71,200.6,4.98504486]
[1756684825534,0.66,200.67,200.6,4.98504486]
[1756684825840,0.66,200.67,200.59,4.98529338]
[1756684826039,13.59559401,200.65,200.52,4.98703371]
[1756684826246,0.66,200.64,200.52,4.98703371]
[1756684826561,0.66,200.63,200.52,4.98703371]
[1756684826717,0.66,200.62,200.52,4.98703371]
[1756684826921,0.66,200.61,200.52,4.98703371]
[1756684827134,0.66,200.6,200.52,4.98703371]
[1756684827341,0.66,200.59,200.52,4.98703371]
[1756684827745,4.987033,200.63,200.52,4.98703371]
[1756684827746,0.66,200.62,200.52,5.04703371]
[1756684827915,0.66,200.61,200.51,0.03]
[1756684828938,0.66,200.61,200.51,13.62559401]
[1756684829243,0.66,200.65,200.52,0.06]
[1756684829823,0.66,200.67,200.53,13.59559401]
[1756684830146,0.66,200.67,200.55,13.59559401]
[1756684830536,0.66,200.67,200.56,0.06]
[1756684831228,0.66,200.67,200.57,13.59559401]
[1756684831437,13.65559401,200.74,200.58,0.06]
[1756684831639,0.66,200.69,200.58,0.06]
[1756684832022,0.66,200.69,200.58,4.98554192]
[1756684832218,14.980899,200.71,200.58,4.98554192]
[1756684832219,0.66,200.68,200.58,4.98554192]
[1756684832423,0.66,200.67,200.58,4.98554192]
[1756684832623,0.66,200.66,200.58,4.98554192]
[1756684833345,0.66,200.65,200.58,4.98554192]
[1756684833732,0.66,200.65,200.57,13.59559401]
[1756684833935,39.74,200.64,200.56,14.982395]
[1756684834140,39.74,200.64,200.48,0.09]
[1756684834141,14.25559401,200.63,200.51,5.01725759]
[1756684834347,0.66,200.62,200.51,5.01725759]
[1756684834529,0.66,200.61,200.51,0.03]
[1756684834851,0.66,200.61,200.51,5.01726553]
[1756684835029,0.66,200.6,200.51,5.01726553]
[1756684835341,0.66,200.59,200.51,5.01726553]
[1756684835549,0.66,200.58,200.51,5.01726553]
[1756684835748,0.66,200.57,200.51,0.03]
[1756684837930,5.64585036,200.57,200.51,0.03]
[1756684838449,0.66,200.57,200.51,0.03]
[1756684839144,13.595594,200.59,200.51,0.03]
[1756684839335,5.64505419,200.6,200.51,0.03]
[1756684840130,0.66,200.6,200.51,0.03]
[1756684841524,0.66,200.6,200.51,0.09]
[1756684841725,0.66,200.63,200.52,0.06]
[1756684841925,24.22,200.69,200.53,13.59559401]
[1756684842125,0.66,200.65,200.55,13.59559401]
[1756684842353,0.66,200.64,200.55,13.59559401]
[1756684842858,0.66,200.67,200.56,0.06]
[1756684844148,0.66,200.67,200.57,13.59559401]
[1756684844354,0.66,200.67,200.57,18.57820501]
[1756684845341,0.66,200.67,200.58,0.06]
[1756684845743,0.06,200.69,200.61,13.59559401]
[1756684846228,0.06,200.69,200.62,4.9845479]
[1756684847349,0.72,200.69,200.62,4.9845479]
[1756684847743,0.72,200.69,200.63,13.59559401]
[1756684848453,0.72,200.69,200.64,4.98405103]
[1756684850342,0.06,200.69,200.64,4.98405103]
[1756684850634,0.06,200.69,200.65,13.65559401]
[1756684851045,0.06,200.69,200.66,0.06]
[1756684851257,0.06,200.69,200.67,0.06]
[1756684851446,0.06,200.69,200.68,39.65559401]
[1756684851644,0.06,200.69,200.68,44.63865161]
[1756684856669,0.06,200.69,200.68,84.69865161]
[1756684856971,0.06,200.69,200.68,44.57865161]
[1756684858150,0.06,200.69,200.68,44.63865161]
[1756684858972,1e-08,200.69,200.68,44.63865161]
[1756684860273,1e-08,200.69,200.68,123.33865161]
[1756684861172,1e-08,200.69,200.68,84.59865161]
[1756684861874,1e-08,200.69,200.68,26.0]
[1756684862074,1e-08,200.69,200.68,13.59559401]
[1756684863056,1e-08,200.69,200.68,13.65559401]
[1756684863553,1e-08,200.69,200.68,18.63865161]
[1756684864384,1e-08,200.69,200.68,58.69865161]
[1756684867071,1e-08,200.69,200.68,137.39865161]
[1756684868755,0.72000001,200.69,200.68,78.7]
[1756684868960,0.72000001,200.69,200.68,40.08]
[1756684870394,0.72000001,200.69,200.68,45.0630576]
[1756684872179,0.72000001,200.69,200.68,40.08]
[1756684872379,0.72000001,200.69,200.68,45.0630576]
[1756684874473,1e-08,200.69,200.68,45.0630576]
[1756684874878,1e-08,200.69,200.68,58.65865161]
[1756684875065,0.72000001,200.69,200.67,26.0]
[1756684875268,0.72000001,200.69,200.68,39.98]
[1756684876062,0.72000001,200.69,200.68,44.9630576]
[1756684876272,0.72000001,200.69,200.68,39.98]
[1756684876974,1e-08,200.69,200.68,53.57559401]
[1756684877679,0.72000001,200.69,200.68,39.98]
[1756684878181,0.72000001,200.69,200.68,44.9630576]
[1756684878787,0.72000001,200.69,200.61,4.98479637]
[1756684879074,0.72,200.68,200.62,53.57559401]
[1756684879471,1e-08,200.69,200.65,26.0]
[1756684879676,1e-08,200.69,200.67,13.59559401]
[1756684879886,1e-08,200.69,200.68,53.57559401]
[1756684880264,1e-08,200.69,200.68,58.55865161]
[1756684881081,1e-08,200.69,200.68,84.55865161]
[1756684882487,1e-08,200.69,200.68,84.61865161]
[1756684883674,1e-08,200.69,200.68,58.61865161]
[1756684884875,1e-08,200.72,200.71,39.59559401]
[1756684885094,1e-08,200.72,200.71,79.55559401]
[1756684885271,1e-08,200.72,200.71,79.61559401]
[1756684885473,1e-08,200.74,200.72,13.59559401]
[1756684885674,1e-08,200.74,200.73,39.59559401]
[1756684885975,1e-08,200.74,200.73,79.55559401]
[1756684886899,1e-08,200.74,200.73,44.57741038]
[1756684887101,1e-08,200.74,200.73,84.53741038]
[1756684887677,1e-08,200.74,200.73,44.57741038]
[1756684888223,1e-08,200.74,200.73,84.51741038]
[1756684888368,1e-08,200.74,200.73,44.57741038]
[1756684888574,1e-08,200.74,200.73,84.49741038]
[1756684889690,1e-08,200.74,200.73,84.47741038]
[1756684889897,0.72000001,200.74,200.73,79.49559401]
[1756684890194,0.72000001,200.74,200.73,70.88181637]
[1756684890893,0.72000001,200.74,200.73,65.9]
[1756684891097,0.72000001,200.74,200.73,70.90181637]
[1756684891398,0.72000001,200.74,200.73,44.90181637]
[1756684891696,1e-08,200.74,200.73,58.49741038]
[1756684892611,1e-08,200.74,200.73,58.55741038]
[1756684892811,1e-08,200.74,200.73,137.75559201]
[1756684893016,1e-08,200.74,200.73,137.25741038]
[1756684893891,1e-08,200.74,200.73,58.55741038]
[1756684894115,1e-08,200.77,200.76,39.59559401]
[1756684894332,1e-08,200.77,200.76,79.49559401]
[1756684894491,1e-08,200.79,200.77,13.59559401]
[1756684894691,1e-08,200.79,200.76,54.0537012]
[1756684894692,1e-08,200.79,200.78,53.49559401]
[1756684894913,1e-08,200.79,200.78,53.99365158]
[1756684895104,1e-08,200.79,200.78,59.03422733]
[1756684896399,1e-08,200.79,200.78,58.97422733]
[1756684896915,1e-08,200.79,200.78,18.57616976]
[1756684897096,1e-08,200.79,200.78,58.43616976]
[1756684898413,1e-08,200.79,200.78,58.45616976]
[1756684899323,1e-08,200.79,200.78,58.51616976]
[1756684899699,1e-08,200.79,200.78,137.15616976]
[1756684900420,1e-08,200.79,200.78,137.21616976]
[1756684900803,1e-08,200.79,200.78,137.15616976]
[1756684901510,1e-08,200.79,200.78,97.27616976]
[1756684901718,0.68000001,200.79,200.78,137.15616976]
[1756684905118,1e-08,200.79,200.78,137.15616976]
[1756684905820,0.68000001,200.79,200.78,137.15616976]
[1756684906318,0.68000001,200.79,200.78,97.27616976]
[1756684906521,1e-08,200.79,200.78,137.09616976]
[1756684907901,0.68000001,200.79,200.78,137.09616976]
[1756684908097,1e-08,200.79,200.78,137.09616976]
[1756684911515,1e-08,200.79,200.78,139.09133176]
[1756684916834,1e-08,200.79,200.78,139.12133176]
[1756684920431,1e-08,200.79,200.78,139.02133176]
[1756684920644,1e-08,200.79,200.78,138.96133176]
[1756684921527,0.68000001,200.79,200.78,99.30133176]
[1756684921763,0.68000001,200.79,200.78,138.96133176]
[1756684922259,0.68000001,200.79,200.78,7.00573775]
[1756684922542,0.68000001,200.79,200.75,0.03]
[1756684922731,0.68000001,200.79,200.76,39.66]
[1756684922938,1e-08,200.79,200.76,39.66]
[1756684923120,0.69,200.78,200.76,39.66]
[1756684923434,0.69,200.77,200.76,39.66]
[1756684924537,0.69,200.77,200.75,39.71]
[1756684924846,0.69,200.76,200.75,39.71]
[1756684926014,0.69,200.78,200.75,44.69132004]
[1756684926220,0.69,200.77,200.75,44.69132004]
[1756684926524,0.69,200.76,200.75,39.71]
[1756684926726,0.69,200.76,200.75,39.69]
[1756684927035,0.69,200.76,200.75,44.67132004]
[1756684927515,0.69,200.76,200.75,0.03]
[1756684927712,0.69,200.76,200.75,39.71]
[1756684928137,0.69,200.76,200.75,0.03]
[1756684928339,5.67107192,200.76,200.75,0.03]
[1756684928819,0.69,200.76,200.75,0.03]
[1756684929346,5.67107192,200.76,200.75,0.03]
[1756684932837,7.66792692,200.76,200.75,0.03]
[1756684933035,25.8892412,200.76,200.75,1e-08]
[1756684933615,29.84982223,200.76,200.75,1e-08]
[1756684933816,26.0,200.73,200.7,0.03]
[1756684934020,13.59559401,200.72,200.7,0.03]
[1756684934245,14.28559401,200.72,200.7,0.03]
[1756684934442,26.69,200.72,200.7,0.03]
[1756684934616,1.997453,200.71,200.7,0.03]
[1756684934820,6.97976578,200.71,200.7,0.03]
[1756684935020,7.66976578,200.71,200.7,0.03]
[1756684935220,2.687453,200.71,200.7,0.03]
[1756684935547,5.67231278,200.71,200.7,0.03]
[1756684939651,7.66986578,200.71,200.7,0.03]
[1756684944446,45.39231278,200.71,200.7,0.03]
[1756684947865,26.0,200.69,200.68,0.03]
[1756684948035,39.69716076,200.69,200.68,0.03]
[1756684948237,40.56546762,200.69,200.68,0.03]
[1756684948966,40.56546762,200.69,200.68,1e-08]
[1756684949131,13.59559401,200.67,200.64,0.03]
[1756684949337,26.0,200.65,200.64,0.03]
[1756684949674,40.51,200.66,200.64,0.03]
[1756684949863,5.67380264,200.65,200.64,0.03]
[1756684950045,73.49185464,200.65,200.64,0.03]
[1756684950236,27.998052,200.65,200.64,0.03]
[1756684950440,26.0,200.65,200.64,0.03]
[1756684950663,26.69,200.65,200.64,0.03]
[1756684951958,26.0,200.65,200.64,0.03]
[1756684952271,71.51380264,200.65,200.64,0.03]
[1756684952650,70.84380264,200.65,200.64,0.03]
[1756684952853,71.51380264,200.65,200.64,0.03]
[1756684955155,59.10939665,200.65,200.63,0.03]
[1756684955355,13.59559401,200.64,200.63,0.03]
[1756684955848,14.26559401,200.64,200.63,0.03]
[1756684956055,19.24964504,200.64,200.63,0.03]
[1756684957659,19.24964504,200.64,200.62,0.03]
[1756684957864,53.43559401,200.63,200.62,0.03]
[1756684958045,13.59559401,200.63,200.62,0.03]
[1756684958246,59.04989346,200.63,200.62,0.03]
[1756684958762,61.04844446,200.63,200.62,0.03]
[1756684960747,26.0,200.6,200.57,0.2]
[1756684960948,39.78,200.59,200.57,0.2]
[1756684961450,44.967737,200.59,200.57,0.2]
[1756684961858,39.78,200.59,200.57,0.2]
[1756684962060,44.767522,200.59,200.57,0.2]
[1756684962374,39.78,200.59,200.57,0.2]
[1756684962568,4.987522,200.58,200.57,0.2]
[1756684962971,9.97306392,200.58,200.57,0.2]
[1756684963350,30.987522,200.58,200.57,0.87]
[1756684963556,44.727522,200.58,200.57,0.87]
[1756684964071,4.98552685,200.59,200.57,0.87]
[1756684964271,12.46010801,200.65,200.58,0.67]
[1756684964474,4.986828,200.61,200.58,0.67]
[1756684964664,39.76,200.6,200.58,0.67]
[1756684964863,9.97027103,200.64,200.58,0.67]
[1756684965061,39.76,200.62,200.58,0.67]
[1756684967277,30.98442025,200.63,200.58,0.67]
[1756684967278,4.9830576,200.68,200.58,5.65549467]
[1756684967571,39.74,200.67,200.59,0.67]
[1756684967774,30.986951,200.69,200.59,0.67]
[1756684967952,39.74,200.68,200.59,0.67]
[1756684968863,4.985494,200.69,200.59,0.67]
[1756684969177,39.24,200.68,200.6,4.98504486]
[1756684969368,44.7227264,200.7,200.61,0.67]
[1756684969552,4.985494,200.71,200.61,0.67]
[1756684969751,39.74,200.71,200.61,0.67]
[1756684970368,0.06,200.67,200.61,0.67]
[1756684970792,0.06,200.67,200.62,4.9845479]
[1756684970970,0.06,200.67,200.63,0.67]
[1756684971677,0.06,200.67,200.58,0.03]
[1756684971868,0.06,200.67,200.6,0.67]
[1756684972065,0.06,200.67,200.61,26.0]
[1756684972374,0.06,200.67,200.62,0.67]
[1756684972961,0.06,200.67,200.63,0.67]
[1756684973270,0.06,200.67,200.64,0.67]
[1756684973465,0.06,200.67,200.6,26.0]
[1756684973771,0.06,200.67,200.61,0.67]
[1756684974985,0.06,200.67,200.62,4.9845479]
[1756684975183,0.06,200.67,200.63,0.67]
[1756684975760,0.06,200.67,200.65,26.0]
[1756684976086,0.06,200.67,200.66,0.67]
[1756684977087,0.06,200.67,200.66,5.65355427]
[1756684979472,0.06,200.67,200.66,0.67]
[1756684980191,0.06,200.67,200.66,5.65355427]
[1756684980977,0.06,200.67,200.66,0.67]
[1756684981176,0.06,200.67,200.66,5.65355427]
[1756684981374,0.06,200.67,200.66,0.67]
[1756684982494,0.06,200.67,200.66,5.65355427]
[1756684983084,0.06,200.67,200.66,19.24914828]
[1756684984298,0.06,200.67,200.66,58.94914828]
[1756684984478,0.06,200.67,200.66,19.24914828]
[1756684984682,0.06,200.67,200.66,58.94914828]
[1756684985710,0.06,200.67,200.65,4.98378449]
[1756684985898,0.73,200.67,200.6,0.67]
[1756684986204,0.67,200.66,200.6,0.67]
[1756684986496,0.06,200.67,200.63,26.0]
[1756684986708,0.06,200.67,200.65,13.59559401]
[1756684987201,0.06,200.67,200.66,0.67]
[1756684988090,0.06,200.67,200.66,26.67]
[1756684988306,0.06,200.67,200.66,0.67]
[1756684988482,0.06,200.67,200.66,19.24914828]
[1756684989078,0.06,200.67,200.66,19.7475037]
[1756684989279,1e-08,200.67,200.66,19.7475037]
[1756684989703,1e-08,200.67,200.66,59.24914828]
[1756684990080,1e-08,200.67,200.66,85.24914828]
[1756684991194,1e-08,200.67,200.6,14.45913684]
[1756684991394,1e-08,200.67,200.61,4.98479637]
[1756684991580,0.67,200.66,200.62,40.04]
[1756684991791,0.67,200.65,200.61,40.04]
[1756684991986,0.67,200.64,200.61,40.04]
[1756684992408,0.67,200.63,200.59,4.98523731]
[1756684992700,0.67,200.63,200.58,5.01551923]
[1756684992908,0.67,200.63,200.59,40.04]
[1756684993601,0.67,200.62,200.58,0.03]
[1756684993908,0.67,200.61,200.58,0.03]
[1756684995831,0.67,200.66,200.59,0.67]
[1756684995989,1e-08,200.67,200.6,53.63559401]
[1756684996385,1e-08,200.67,200.61,0.67]
[1756684997004,1e-08,200.67,200.62,4.9845479]
[1756684997413,0.67000001,200.67,200.62,4.9845479]
[1756684997706,0.67000001,200.67,200.62,5.6545479]
[1756684998294,0.67000001,200.67,200.62,0.67]
[1756684998498,1e-08,200.67,200.62,0.67]
[1756684999005,1e-08,200.67,200.63,4.98429945]
[1756684999812,1e-08,200.67,200.62,0.67]
[1756684999813,1e-08,200.67,200.61,4.984756]
[1756685000022,0.67,200.66,200.61,4.984756]
[1756685000192,1e-08,200.67,200.61,4.984756]
[1756685000193,0.67,200.65,200.61,44.984756]
[1756685000722,1e-08,200.67,200.61,44.984756]
[1756685000886,1e-08,200.67,200.61,45.654756]
[1756685001085,1e-08,200.67,200.59,0.67]
[1756685001308,0.67,200.66,200.6,40.0]
[1756685002884,0.67,200.66,200.6,44.98487532]
[1756685004116,0.67,200.66,200.6,45.65487532]
[1756685004486,1e-08,200.67,200.61,0.67]
[1756685005939,1e-08,200.67,200.61,5.68463097]
[1756685006321,0.67,200.66,200.61,0.03]
[1756685006638,1e-08,200.67,200.61,0.03]
[1756685006639,0.67,200.65,200.61,0.03]
[1756685006836,0.67,200.64,200.61,0.03]
[1756685007537,0.67,200.63,200.61,0.03]
[1756685007837,0.67,200.62,200.61,0.03]
[1756685008003,4.98417593,200.64,200.61,0.03]
[1756685008204,0.67,200.65,200.61,0.03]
[1756685008404,5.65381211,200.65,200.61,0.03]
[1756685010230,0.67,200.65,200.61,0.03]
[1756685010606,0.67,200.64,200.61,0.03]
[1756685010852,30.98357629,200.66,200.61,0.03]
[1756685011220,0.67,200.65,200.61,0.03]
[1756685012034,0.67,200.65,200.61,0.72]
[1756685013254,5.65385297,200.65,200.61,0.03]
[1756685013551,0.67,200.65,200.61,0.72]
[1756685015545,1e-08,200.67,200.61,5.70472373]
[1756685015869,1e-08,200.67,200.62,0.69]
[1756685016323,0.67,200.66,200.62,0.69]
[1756685017147,0.67,200.65,200.61,0.03]
[1756685017615,0.67,200.64,200.61,0.03]
[1756685017812,5.65419034,200.64,200.61,0.03]
[1756685018017,0.67,200.63,200.61,0.03]
[1756685019416,5.65438562,200.63,200.61,0.03]
[1756685019635,1e-08,200.67,200.62,0.69]
[1756685019838,1e-08,200.67,200.63,0.69]
[1756685020433,0.67000001,200.67,200.63,0.69]
[1756685020621,1e-08,200.67,200.63,0.69]
[1756685022027,0.67000001,200.67,200.63,0.69]
[1756685023848,5.65337138,200.67,200.63,0.69]
[1756685024043,4.98337138,200.67,200.61,5.7047706]
[1756685024260,4.98337138,200.67,200.61,0.72]
[1756685024556,4.98337138,200.67,200.61,0.03]
[1756685024557,30.98337138,200.67,200.61,0.03]
[1756685025046,30.98337138,200.67,200.61,0.72]
[1756685025047,26.00000001,200.67,200.61,0.72]
[1756685025369,4.98335173,200.67,200.61,0.72]
[1756685025520,4.98335173,200.67,200.61,0.03]
[1756685025724,1e-08,200.67,200.61,0.03]
[1756685025950,0.67000001,200.67,200.61,0.03]
[1756685026848,4.98355427,200.66,200.61,0.03]
[1756685027026,4.98355427,200.66,200.61,0.72]
[1756685027226,5.65355427,200.66,200.61,0.72]
[1756685027754,1e-08,200.67,200.62,0.69]
[1756685028756,1e-08,200.67,200.63,0.69]
[1756685028954,1e-08,200.67,200.64,4.98405103]
[1756685029254,1e-08,200.67,200.64,5.67405103]
[1756685029547,1e-08,200.67,200.65,0.69]
[1756685030053,1e-08,200.67,200.66,0.69]
[1756685030222,1e-08,200.67,200.64,0.69]
[1756685030753,0.67000001,200.67,200.61,5.70478639]
[1756685030956,0.67000001,200.67,200.61,45.44478639]
[1756685031339,1e-08,200.67,200.61,45.44478639]
[1756685031651,5.65346839,200.67,200.61,0.03]
[1756685033155,44.1117332,200.67,200.61,0.03]
[1756685038543,26.0,200.64,200.61,0.03]
[1756685038758,39.74,200.63,200.61,0.03]
[1756685039055,40.41,200.63,200.61,0.03]
[1756685039355,0.67,200.62,200.61,0.03]
[1756685040635,5.6545479,200.62,200.61,0.03]
[1756685041739,26.0,200.59,200.58,0.03]
[1756685042047,65.74,200.59,200.58,0.03]
[1756685042262,66.41,200.59,200.58,0.03]
[1756685042858,84.99088739,200.59,200.58,1e-08]
[1756685046244,13.59559401,200.58,200.56,0.03]
[1756685046767,0.67,200.57,200.56,0.03]
[1756685047173,5.65579049,200.57,200.56,0.03]
[1756685048764,45.39579049,200.57,200.56,1e-08]
[1756685050965,13.59559401,200.56,200.55,1e-08]
[1756685051355,14.26559401,200.56,200.55,1e-08]
[1756685052553,19.25509101,200.56,200.55,1e-08]
[1756685052975,24.2411301,200.56,200.55,1e-08]
[1756685058248,64.0011301,200.56,200.55,1e-08]
[1756685058750,64.1553284,200.56,200.55,1e-08]
[1756685061276,63.6553284,200.56,200.55,1e-08]
[1756685061469,26.0,200.52,200.5,0.03]
[1756685061646,39.76,200.51,200.5,0.03]
[1756685061844,40.43,200.51,200.5,0.03]
[1756685062165,54.025594,200.51,200.5,0.03]
[1756685062367,54.025594,200.51,200.44,0.69]
[1756685062368,26.0,200.48,200.44,0.69]
[1756685062575,30.98877525,200.45,200.44,0.69]
[1756685062755,70.74877525,200.45,200.37,4.990612]
[1756685063254,70.74877525,200.45,200.38,0.69]
[1756685064566,70.74877525,200.45,200.39,4.99026897]
[1756685064770,65.76,200.45,200.4,0.69]
[1756685064988,65.76,200.45,200.39,4.99026897]
[1756685065682,4.98859507,200.46,200.39,4.99026897]
[1756685065861,13.59559401,200.55,200.4,13.59559401]
[1756685066061,26.0,200.51,200.4,13.59559401]
[1756685066260,39.76,200.5,200.4,13.59559401]
[1756685066472,39.76,200.5,200.42,13.59559401]
[1756685066853,0.67,200.56,200.43,0.69]
[1756685067059,4.98579049,200.57,200.43,0.69]
[1756685067271,39.76,200.55,200.43,0.69]
[1756685068089,26.0,200.52,200.43,0.69]
[1756685068291,39.76,200.51,200.43,0.69]
[1756685068463,65.76,200.51,200.44,4.98902414]
[1756685068661,65.76,200.51,200.45,0.69]
[1756685069396,0.67,200.54,200.45,0.69]
[1756685069558,39.76,200.53,200.45,0.69]
[1756685069761,39.76,200.52,200.45,0.69]
[1756685070177,26.0,200.49,200.45,0.69]
[1756685070571,26.0,200.49,200.41,4.98977096]
[1756685070775,26.0,200.49,200.46,0.69]
[1756685070977,26.0,200.49,200.47,0.69]
[1756685071154,31.65783062,200.49,200.43,0.69]
[1756685071353,39.76,200.48,200.43,0.69]
[1756685071791,39.76,200.48,200.44,0.69]
[1756685071994,0.68,200.47,200.41,0.72]
[1756685072485,44.74827611,200.48,200.41,0.72]
[1756685073692,39.76,200.47,200.41,5.70974435]
[1756685073870,39.76,200.47,200.41,4.98974435]
[1756685074064,39.76,200.47,200.42,0.72]
[1756685074382,0.68,200.46,200.39,4.99026897]
[1756685074587,39.76,200.47,200.4,0.72]
[1756685074975,39.76,200.47,200.41,4.98977096]
[1756685075177,44.74829319,200.47,200.41,0.72]
[1756685075578,39.76,200.47,200.41,0.72]
[1756685075768,26.0,200.44,200.41,0.72]
[1756685076677,26.0,200.44,200.42,0.72]
[1756685077587,26.0,200.44,200.39,0.72]
[1756685077794,26.0,200.42,200.4,0.75]